bitfinex-derivatives/quotes_BTCF0:USTF0_20260113
["timestamp","ask_amount","ask_price","bid_price","bid_amount"]
[1768264483633,0.00240312,91548.0,91532.0,0.19118889]
[1768264485435,0.00240312,91548.0,91532.0,0.20212689]
[1768264486425,0.00240312,91548.0,91533.0,0.010938]
[1768264491042,0.00240312,91548.0,91533.0,0.20212689]
[1768264491345,0.00240312,91548.0,91534.0,0.19118889]
[1768264491728,0.09041979,91555.0,91537.0,0.010937]
[1768264492126,0.09041979,91555.0,91536.0,0.19118889]
[1768264492127,0.010935,91554.0,91536.0,0.19118889]
[1768264493239,0.010935,91554.0,91537.0,0.19118889]
[1768264496142,0.09844,91556.0,91541.0,0.19118889]
[1768264496343,0.010935,91555.0,91541.0,0.19118889]
[1768264496642,0.010935,91555.0,91541.0,0.0965343]
[1768264498544,0.010935,91553.0,91541.0,0.0965343]
[1768264501843,0.109375,91556.0,91543.0,0.0965343]
[1768264502050,0.109374,91566.0,91547.0,0.0965343]
[1768264502239,0.010935,91558.0,91549.0,0.0965343]
[1768264502432,0.010935,91558.0,91549.0,0.19118889]
[1768264502843,0.09844,91566.0,91549.0,0.19118889]
[1768264503045,0.18885979,91566.0,91549.0,0.0965343]
[1768264503443,0.09844,91566.0,91549.0,0.0965343]
[1768264503633,0.010934,91561.0,91549.0,0.0965343]
[1768264504842,0.010935,91560.0,91549.0,0.0965343]
[1768264506052,0.010934,91562.0,91549.0,0.0965343]
[1768264507544,0.09606384,91565.0,91549.0,0.0965343]
[1768264507752,0.010934,91560.0,91549.0,0.0965343]
[1768264508254,0.09606384,91565.0,91549.0,0.0965343]
[1768264509147,0.010934,91560.0,91549.0,0.0965343]
[1768264510048,0.010935,91558.0,91549.0,0.0965343]
[1768264510553,0.010935,91556.0,91549.0,0.0965343]
[1768264511053,0.010935,91556.0,91545.0,0.09538138]
[1768264511253,0.09606384,91565.0,91545.0,0.18964764]
[1768264511550,0.010935,91556.0,91545.0,0.18964764]
[1768264512551,0.010935,91558.0,91545.0,0.18964764]
[1768264513556,0.09606384,91565.0,91545.0,0.18964764]
[1768264514255,0.010935,91555.0,91545.0,0.18964764]
[1768264516563,0.09215261,91563.0,91545.0,0.09538138]
[1768264516858,0.010935,91552.0,91540.0,0.0962731]
[1768264517159,0.010936,91547.0,91539.0,0.0984]
[1768264517357,0.010936,91547.0,91536.0,0.00016388]
[1768264517657,0.010936,91546.0,91538.0,0.0984]
[1768264518356,0.09215261,91554.0,91538.0,0.0984]
[1768264518357,0.010936,91549.0,91538.0,0.0984]
[1768264519652,0.00016388,91551.0,91538.0,0.0984]
[1768264520268,0.010936,91548.0,91538.0,0.1946731]
[1768264520452,0.01109988,91551.0,91538.0,0.1946731]
[1768264521164,0.010936,91549.0,91538.0,0.1946731]
[1768264522357,0.00016388,91551.0,91538.0,0.1946731]
[1768264523568,0.010936,91550.0,91538.0,0.1946731]
[1768264523970,0.010936,91550.0,91538.0,0.29008068]
[1768264524160,0.010936,91550.0,91539.0,0.0962731]
[1768264524869,0.010936,91549.0,91539.0,0.0962731]
[1768264525063,0.00016388,91551.0,91539.0,0.0962731]
[1768264525457,0.010936,91548.0,91539.0,0.0962731]
[1768264526370,0.010936,91549.0,91539.0,0.0962731]
[1768264527170,0.00016388,91551.0,91539.0,0.0962731]
[1768264530975,0.010936,91550.0,91539.0,0.0962731]
[1768264531271,0.00016388,91551.0,91539.0,0.0962731]
[1768264531462,0.01109988,91551.0,91539.0,0.0962731]
[1768264532967,0.010936,91550.0,91539.0,0.0962731]
[1768264533172,0.00016388,91551.0,91539.0,0.0962731]
[1768264534576,0.00016388,91551.0,91539.0,0.18797997]
[1768264534870,0.00016388,91551.0,91541.0,0.1889287]
[1768264535271,0.00016388,91551.0,91542.0,0.09722183]
[1768264537972,0.00016388,91551.0,91542.0,0.1889287]
[1768264540572,0.00016388,91551.0,91543.0,0.09722183]
[1768264541477,0.00016388,91551.0,91543.0,0.1889287]
[1768264543173,0.0984,91558.0,91538.0,0.0984]
[1768264543174,0.010935,91557.0,91544.0,0.1889287]
[1768264543376,0.010935,91557.0,91545.0,0.09722183]
[1768264543873,0.010934,91562.0,91550.0,0.1889287]
[1768264544176,0.0984,91561.0,91552.0,0.09722183]
[1768264544577,0.0984,91561.0,91548.0,0.09170687]
[1768264546173,0.010934,91560.0,91548.0,0.09170687]
[1768264546576,0.010934,91560.0,91547.0,0.09722183]
[1768264546876,0.010935,91558.0,91547.0,0.09722183]
[1768264547075,0.010935,91558.0,91538.0,0.109337]
[1768264547076,0.010935,91556.0,91542.0,0.1889287]
[1768264547577,0.010935,91556.0,91543.0,0.09722183]
[1768264547879,0.010935,91556.0,91543.0,0.1889287]
[1768264550282,0.010935,91556.0,91544.0,0.09722183]
[1768264550685,0.010935,91554.0,91544.0,0.09722183]
[1768264551183,0.010935,91552.0,91544.0,0.09722183]
[1768264551386,0.010935,91554.0,91544.0,0.09722183]
[1768264552981,0.010935,91554.0,91544.0,0.1889287]
[1768264553182,0.010935,91557.0,91544.0,0.1889287]
[1768264553388,0.010935,91557.0,91546.0,0.09722183]
[1768264553589,0.0984,91561.0,91546.0,0.09722183]
[1768264553787,0.14916898,91560.0,91546.0,0.09722183]
[1768264553984,0.010935,91557.0,91546.0,0.09722183]
[1768264554384,0.010935,91557.0,91546.0,0.1889287]
[1768264556293,0.010935,91556.0,91546.0,0.1889287]
[1768264557796,0.010935,91559.0,91546.0,0.1889287]
[1768264557998,0.010935,91557.0,91546.0,0.1889287]
[1768264559900,0.14916898,91560.0,91546.0,0.1889287]
[1768264561601,0.010935,91556.0,91546.0,0.1889287]
[1768264562413,0.010933,91576.0,91538.0,0.0984]
[1768264562702,0.109332,91577.0,91568.0,0.09170687]
[1768264563288,0.010933,91575.0,91568.0,0.09170687]
[1768264563693,0.010933,91575.0,91567.0,0.09722183]
[1768264565202,0.01333434,91578.0,91569.0,0.16850805]
[1768264565399,0.0984,91581.0,91569.0,0.16850805]
[1768264565600,0.010932,91576.0,91569.0,0.16850805]
[1768264566303,0.010932,91576.0,91569.0,0.09646493]
[1768264569911,0.010932,91576.0,91566.0,0.00077856]
[1768264570103,0.010932,91576.0,91567.0,0.00024237]
[1768264570304,0.010932,91576.0,91568.0,0.00024237]
[1768264570504,0.010932,91579.0,91568.0,0.00024237]
[1768264571007,0.010932,91577.0,91568.0,0.00024237]
[1768264573217,0.00545944,91585.0,91568.0,0.00024237]
[1768264573218,0.010932,91580.0,91568.0,0.00024237]
[1768264574013,0.010932,91580.0,91567.0,0.09646493]
[1768264574518,0.010932,91583.0,91567.0,0.09646493]
[1768264575014,0.0984,91584.0,91567.0,0.09646493]
[1768264575612,0.0650358,91605.0,91583.0,0.09432974]
[1768264575613,0.010929,91602.0,91583.0,0.09432974]
[1768264575806,0.010929,91602.0,91575.0,0.010933]
[1768264575807,0.010929,91604.0,91590.0,0.14916898]
[1768264576004,0.00545825,91605.0,91593.0,0.0945468]
[1768264576203,0.00545825,91605.0,91598.0,0.09432974]
[1768264576717,0.00545825,91605.0,91592.0,0.19272974]
[1768264576915,0.00545825,91605.0,91594.0,0.00021099]
[1768264577112,0.00545825,91605.0,91595.0,0.00021099]
[1768264577814,0.00545825,91605.0,91594.0,7.3e-07]
[1768264578018,0.01093,91598.0,91588.0,0.00016379]
[1768264578217,0.01093,91598.0,91589.0,0.0984]
[1768264579415,0.01093,91594.0,91582.0,0.0984]
[1768264579608,0.24422735,91600.0,91582.0,0.0984]
[1768264579609,0.10625258,91598.0,91582.0,0.0984]
[1768264580722,0.09532258,91598.0,91582.0,0.0984]
[1768264581215,0.09505837,91603.0,91582.0,0.0984]
[1768264581421,0.00545825,91605.0,91590.0,0.14916898]
[1768264581615,0.01093,91600.0,91590.0,0.21998521]
[1768264582824,0.01093,91597.0,91584.0,0.05988623]
[1768264583422,0.10078083,91605.0,91584.0,0.05988623]
[1768264583808,0.010931,91589.0,91583.0,0.00016379]
[1768264584012,0.010931,91587.0,91583.0,7.9e-07]
[1768264584215,0.010931,91590.0,91583.0,7.9e-07]
[1768264584720,0.010881,91590.0,91583.0,7.9e-07]
[1768264585524,0.01093,91593.0,91583.0,7.9e-07]
[1768264586509,0.010931,91591.0,91583.0,7.9e-07]
[1768264586824,0.00016379,91604.0,91583.0,7.9e-07]
[1768264586825,0.010931,91589.0,91583.0,7.9e-07]
[1768264588323,0.10625258,91594.0,91583.0,7.9e-07]
[1768264588524,0.01093,91598.0,91583.0,7.9e-07]
[1768264588717,0.01093,91596.0,91583.0,7.9e-07]
[1768264589325,0.09532258,91599.0,91583.0,7.9e-07]
[1768264589523,0.01093,91598.0,91583.0,7.9e-07]
[1768264589824,0.10625258,91598.0,91583.0,7.9e-07]
[1768264591115,0.19038095,91580.0,91559.0,0.07808202]
[1768264591320,0.010933,91574.0,91561.0,0.09836]
[1768264591511,0.010933,91575.0,91561.0,0.09836]
[1768264593528,0.00016379,91579.0,91561.0,0.09836]
[1768264594927,0.010933,91572.0,91561.0,0.09836]
[1768264595125,0.09316181,91579.0,91565.0,6.3e-07]
[1768264595334,0.010933,91571.0,91565.0,6.3e-07]
[1768264596831,0.010933,91569.0,91565.0,6.3e-07]
[1768264597132,0.09299802,91573.0,91565.0,6.3e-07]
[1768264598033,0.010933,91571.0,91565.0,6.3e-07]
[1768264599330,0.010883,91571.0,91565.0,6.3e-07]
[1768264600125,0.09299802,91573.0,91565.0,6.3e-07]
[1768264600732,0.010933,91572.0,91565.0,6.3e-07]
[1768264602817,0.10393102,91570.0,91565.0,6.3e-07]
[1768264604131,0.09299802,91576.0,91565.0,6.3e-07]
[1768264605531,0.010933,91573.0,91565.0,6.3e-07]
[1768264608434,0.09299802,91576.0,91565.0,6.3e-07]
[1768264609020,0.09836,91585.0,91567.0,0.09826339]
[1768264609227,0.010932,91585.0,91570.0,0.14916898]
[1768264611335,0.29361984,91588.0,91567.0,0.09826339]
[1768264611731,0.19525984,91588.0,91567.0,0.09826339]
[1768264612341,0.10392902,91588.0,91567.0,0.09826339]
[1768264613536,0.010931,91585.0,91567.0,0.09826339]
[1768264614138,0.09299802,91595.0,91569.0,0.10919639]
[1768264614438,0.01093,91595.0,91573.0,0.09826339]
[1768264614644,0.01093,91595.0,91575.0,0.09826339]
[1768264614829,0.01093,91595.0,91575.0,0.17634541]
[1768264615935,0.18432884,91592.0,91575.0,0.07808202]
[1768264616235,0.18432884,91592.0,91576.0,0.07808202]
[1768264616540,0.18432884,91583.0,91574.0,0.0984]
[1768264616738,0.09133082,91580.0,91570.0,0.07808202]
[1768264616938,0.10393002,91578.0,91568.0,0.0984]
[1768264617140,0.09299802,91578.0,91568.0,0.0984]
[1768264617535,0.010932,91580.0,91568.0,0.0984]
[1768264617938,0.09299802,91584.0,91568.0,0.0984]
[1768264618144,0.09299802,91579.0,91558.0,0.07812623]
[1768264618434,0.09299802,91579.0,91558.0,0.09836]
[1768264618639,0.09299802,91579.0,91559.0,0.09858876]
[1768264618828,0.09299802,91579.0,91560.0,0.09858876]
[1768264619442,0.18432884,91579.0,91560.0,0.09858876]
[1768264619935,0.18432884,91584.0,91562.0,0.09858876]
[1768264620144,0.09836,91583.0,91562.0,0.09858876]
[1768264620345,0.18969082,91583.0,91563.0,0.09858876]
[1768264620835,0.18969082,91583.0,91564.0,0.10952276]
[1768264621431,0.18969082,91583.0,91564.0,0.09858876]
[1768264623050,0.19526084,91581.0,91562.0,0.09826339]
[1768264623946,0.010932,91578.0,91562.0,0.09826339]
[1768264625240,0.19526084,91581.0,91562.0,0.09826339]
[1768264625439,0.010932,91579.0,91562.0,0.09826339]
[1768264627743,0.18432884,91581.0,91562.0,0.09826339]
[1768264627952,0.010933,91571.0,91558.0,0.09836]
[1768264628242,0.10675162,91574.0,91558.0,0.09836]
[1768264628650,0.010933,91572.0,91558.0,0.09836]
[1768264631150,0.010933,91572.0,91558.0,0.19342125]
[1768264634652,0.010933,91572.0,91559.0,0.09704261]
[1768264637458,0.010933,91570.0,91559.0,0.09704261]
[1768264638065,0.18664882,91580.0,91559.0,0.09704261]
[1768264638351,0.010932,91577.0,91562.0,0.09704261]
[1768264638557,0.010932,91577.0,91563.0,0.09704261]
[1768264638948,0.010932,91577.0,91564.0,0.09704261]
[1768264640757,0.09111059,91586.0,91565.0,0.19387238]
[1768264640965,0.010932,91580.0,91571.0,0.09704261]
[1768264641753,0.010932,91580.0,91570.0,0.09682977]
[1768264641952,0.010932,91580.0,91567.0,0.09704261]
[1768264644060,0.010932,91580.0,91568.0,0.09704261]
[1768264644460,0.010932,91583.0,91568.0,0.09704261]
[1768264644663,0.010932,91583.0,91570.0,0.09704261]
[1768264645856,0.010932,91581.0,91560.0,0.19387238]
[1768264646050,0.010932,91581.0,91566.0,0.09704261]
[1768264646263,0.010932,91581.0,91567.0,0.19387238]
[1768264646463,0.010932,91581.0,91569.0,0.09704261]
[1768264648363,0.010932,91584.0,91570.0,0.09704261]
[1768264648666,0.010932,91582.0,91570.0,0.09704261]
[1768264650868,0.00562323,91585.0,91569.0,0.09682977]
[1768264651356,0.00562323,91585.0,91570.0,0.09704261]
[1768264651555,0.01093,91600.0,91558.0,0.109295]
[1768264651556,0.0984,91594.0,91573.0,0.09682977]
[1768264651859,0.02594895,91593.0,91574.0,0.09704261]
[1768264652058,0.02594895,91592.0,91574.0,0.09704261]
[1768264652268,0.02594895,91591.0,91574.0,0.09704261]
[1768264652567,0.02594895,91590.0,91574.0,0.09704261]
[1768264652768,0.18194079,91593.0,91574.0,0.09704261]
[1768264653062,0.20725215,91592.0,91574.0,0.09704261]
[1768264653267,0.12371136,91591.0,91576.0,0.09704261]
[1768264653462,0.0984,91592.0,91576.0,0.09704261]
[1768264653662,0.02531061,91591.0,91576.0,0.09704261]
[1768264653867,0.02531061,91590.0,91576.0,0.09704261]
[1768264654069,0.0984,91592.0,91576.0,0.09704261]
[1768264654267,0.18194079,91598.0,91576.0,0.09704261]
[1768264654569,0.21453673,91597.0,91576.0,0.09704261]
[1768264654769,0.02530653,91596.0,91576.0,0.09704261]
[1768264654990,0.02530653,91595.0,91576.0,0.09704261]
[1768264655290,0.02530653,91594.0,91576.0,0.09704261]
[1768264655484,0.1892302,91597.0,91576.0,0.09704261]
[1768264655684,0.02530393,91596.0,91576.0,0.09704261]
[1768264655884,0.1892302,91597.0,91576.0,0.09704261]
[1768264655885,0.02530393,91595.0,91576.0,0.15704261]
[1768264656084,0.02530393,91594.0,91576.0,0.15704261]
[1768264656390,0.0984,91593.0,91576.0,0.15704261]
[1768264657493,0.010931,91591.0,91577.0,0.09325983]
[1768264657688,0.010931,91591.0,91577.0,0.21325983]
[1768264658794,0.0984,91593.0,91578.0,0.09325983]
[1768264658992,0.010929,91602.0,91588.0,0.09325983]
[1768264659186,0.010929,91602.0,91589.0,0.09325983]
[1768264659389,0.0984,91607.0,91590.0,0.09325983]
[1768264659390,0.01638725,91605.0,91590.0,0.09325983]
[1768264659596,0.01638725,91605.0,91590.0,0.19325983]
[1768264660384,0.010929,91603.0,91590.0,0.19325983]
[1768264660888,0.00545825,91605.0,91590.0,0.1]
[1768264660889,0.01093,91601.0,91590.0,0.1]
[1768264661494,0.010929,91604.0,91590.0,0.1]
[1768264662492,0.09408159,91600.0,91574.0,0.07823661]
[1768264662799,0.010933,91571.0,91565.0,0.0984]
[1768264663096,0.010933,91569.0,91565.0,0.05]
[1768264663286,0.010933,91569.0,91565.0,0.11]
[1768264663485,0.010933,91572.0,91565.0,0.11]
[1768264663688,0.09408159,91581.0,91565.0,0.11]
[1768264664098,0.010933,91576.0,91565.0,0.11]
[1768264664499,0.010932,91580.0,91565.0,0.11]
[1768264664698,0.09408159,91581.0,91565.0,0.11]
[1768264665099,0.00016379,91582.0,91548.0,0.10076312]
[1768264665100,0.18991485,91566.0,91548.0,0.10076312]
[1768264665300,0.09408159,91564.0,91548.0,0.12240312]
[1768264665603,0.09836,91569.0,91548.0,0.05]
[1768264665604,0.09583326,91550.0,91548.0,0.05]
[1768264665800,0.010936,91549.0,91529.0,0.09325983]
[1768264665992,0.010936,91549.0,91529.0,0.20325983]
[1768264666188,0.00016379,91548.0,91529.0,0.20325983]
[1768264667101,0.00016379,91548.0,91529.0,0.29358563]
[1768264667302,0.00016379,91548.0,91530.0,0.09325983]
[1768264667999,0.010936,91547.0,91530.0,0.09325983]
[1768264668199,0.010936,91544.0,91529.0,0.0903258]
[1768264669597,0.10518138,91548.0,91529.0,0.18358563]
[1768264669798,0.00016379,91548.0,91530.0,0.09325983]
[1768264670502,0.00016379,91548.0,91531.0,0.18358563]
[1768264670807,0.00016379,91548.0,91533.0,0.18358563]
[1768264670996,0.00016379,91548.0,91534.0,0.18358563]
[1768264671196,0.00016379,91548.0,91535.0,0.18358563]
[1768264671398,0.010935,91558.0,91541.0,0.09325983]
[1768264671598,0.0984,91550.0,91543.0,0.09325983]
[1768264671806,0.0984,91554.0,91543.0,0.09325983]
[1768264672105,0.010935,91558.0,91543.0,0.09325983]
[1768264672308,0.010934,91562.0,91543.0,0.09325983]
[1768264672497,0.0984,91555.0,91543.0,0.09325983]
[1768264672701,0.010934,91562.0,91543.0,0.09325983]
[1768264673112,0.010935,91559.0,91543.0,0.09325983]
[1768264673410,0.0984,91558.0,91543.0,0.09325983]
[1768264677906,0.010934,91566.0,91549.0,0.09325983]
[1768264678108,0.0984,91565.0,91549.0,0.09325983]
[1768264678312,0.010934,91566.0,91549.0,0.09325983]
[1768264678611,0.0984,91565.0,91550.0,0.24242292]
[1768264679403,0.0984,91564.0,91551.0,0.09325983]
[1768264680312,0.0984,91566.0,91554.0,0.09325983]
[1768264680707,0.0984,91572.0,91557.0,0.09325983]
[1768264680908,0.0984,91572.0,91554.0,0.0903258]
[1768264680909,0.0984,91572.0,91560.0,0.14916309]
[1768264681103,0.0984,91572.0,91559.0,0.09325983]
[1768264681310,0.010933,91576.0,91561.0,0.09325983]
[1768264681513,0.109333,91576.0,91562.0,0.09325983]
[1768264683702,0.010933,91576.0,91562.0,0.09325983]
[1768264684312,0.10080234,91578.0,91562.0,0.18358563]
[1768264684511,0.10080234,91578.0,91560.0,0.14916309]
[1768264684512,0.10080234,91578.0,91569.0,0.0901099]
[1768264685516,0.00240234,91578.0,91569.0,0.0901099]
[1768264685917,0.00240234,91578.0,91565.0,0.0901099]
[1768264686215,0.01333434,91578.0,91565.0,0.0901099]
[1768264686412,0.01333434,91578.0,91566.0,0.0901099]
[1768264686716,0.00240234,91578.0,91566.0,0.0901099]
[1768264688519,0.00240234,91578.0,91567.0,0.18652255]
[1768264688719,0.00240234,91578.0,91568.0,0.0901099]
[1768264695414,0.0984,91584.0,91568.0,0.33874283]
[1768264695722,0.0984,91584.0,91572.0,0.09249626]
[1768264696311,0.00545944,91585.0,91572.0,0.1919661]
[1768264696524,0.0984,91592.0,91576.0,0.09249626]
[1768264696723,0.0984,91592.0,91580.0,0.14916309]
[1768264696925,0.010931,91587.0,91578.0,0.09249626]
[1768264697125,0.010931,91587.0,91575.0,0.09946984]
[1768264697318,0.010931,91587.0,91575.0,0.1919661]
[1768264697923,0.010931,91587.0,91576.0,0.09249626]
[1768264700623,0.0984,91588.0,91570.0,0.09249626]
[1768264700823,0.010932,91582.0,91571.0,0.09249626]
[1768264704324,0.0984,91588.0,91567.0,0.09249626]
[1768264704325,0.18548885,91587.0,91567.0,0.09249626]
[1768264704626,0.09104938,91585.0,91567.0,0.09249626]
[1768264704826,0.09104938,91585.0,91568.0,0.00016379]
[1768264705034,0.010932,91579.0,91568.0,0.00016379]
[1768264705529,0.19642085,91577.0,91565.0,0.00546063]
[1768264706025,0.09104938,91577.0,91565.0,0.00546063]
[1768264707021,0.0984,91578.0,91565.0,0.09795689]
[1768264708628,0.109332,91578.0,91565.0,0.09795689]
[1768264710721,0.109332,91578.0,91565.0,0.00546063]
[1768264711117,0.010933,91576.0,91565.0,0.00546063]
[1768264711324,0.010933,91574.0,91565.0,0.00546063]
[1768264711524,0.0984,91578.0,91565.0,0.00546063]
[1768264711827,0.18944938,91578.0,91565.0,0.00546063]
[1768264712133,0.010933,91570.0,91565.0,6.3e-07]
[1768264713327,0.09443947,91571.0,91548.0,0.10080312]
[1768264713534,0.010934,91563.0,91548.0,0.10080312]
[1768264714231,0.010934,91561.0,91548.0,0.00240312]
[1768264714723,0.09104938,91563.0,91548.0,0.00240312]
[1768264714924,0.00016379,91565.0,91550.0,0.14916309]
[1768264715729,0.01109779,91565.0,91548.0,0.09455227]
[1768264716124,0.10152644,91563.0,91548.0,0.00240312]
[1768264716323,0.010934,91561.0,91548.0,0.00240312]
[1768264719440,0.010935,91559.0,91548.0,0.00240312]
[1768264720430,0.010934,91562.0,91548.0,0.09455227]
[1768264721737,0.01109779,91565.0,91548.0,0.09455227]
[1768264721927,0.0984,91564.0,91548.0,0.09455227]
[1768264722937,0.010934,91563.0,91548.0,0.09455227]
[1768264723234,0.77952,91580.0,91548.0,0.09455227]
[1768264723235,0.010933,91574.0,91554.0,0.18580131]
[1768264723438,0.010932,91577.0,91562.0,0.09214915]
[1768264723739,0.010932,91581.0,91567.0,0.24131224]
[1768264723940,0.010932,91581.0,91570.0,0.14916309]
[1768264724133,0.18899244,91584.0,91567.0,0.09214915]
[1768264724134,0.010932,91579.0,91567.0,0.09214915]
[1768264724334,0.010932,91579.0,91563.0,0.09214915]
[1768264727042,0.010933,91576.0,91559.0,0.09214915]
[1768264727245,0.010933,91576.0,91560.0,0.24131224]
[1768264727543,0.10152544,91576.0,91557.0,0.09214915]
[1768264727743,0.10152544,91576.0,91560.0,0.14916309]
[1768264728142,0.10152544,91576.0,91560.0,0.24131224]
[1768264729347,0.010933,91574.0,91557.0,0.09214915]
[1768264729643,0.19815785,91574.0,91556.0,0.07816968]
[1768264730242,0.19815785,91574.0,91556.0,0.17031883]
[1768264730436,0.010933,91572.0,91556.0,0.17031883]
[1768264730633,0.18722485,91574.0,91556.0,0.17031883]
[1768264730835,0.010934,91561.0,91553.0,0.07816968]
[1768264731044,0.18722485,91569.0,91552.0,0.07816968]
[1768264731348,0.010934,91564.0,91552.0,0.17031883]
[1768264731738,0.010934,91568.0,91552.0,0.17031883]
[1768264732048,0.010934,91568.0,91553.0,0.09214915]
[1768264733244,0.09059244,91569.0,91553.0,0.09214915]
[1768264733245,0.010934,91566.0,91553.0,0.09214915]
[1768264734670,0.010934,91562.0,91552.0,0.07816968]
[1768264734964,0.010934,91562.0,91551.0,0.07833347]
[1768264736458,0.010934,91560.0,91551.0,0.00016379]
[1768264736766,0.010934,91563.0,91551.0,0.00016379]
[1768264738064,0.09059244,91564.0,91551.0,0.00016379]
[1768264739065,0.010934,91561.0,91551.0,0.00016379]
[1768264739261,0.18722485,91564.0,91551.0,0.00016379]
[1768264739566,0.09059244,91563.0,91551.0,0.00016379]
[1768264740067,0.18722485,91563.0,91551.0,0.00016379]
[1768264740262,0.28562485,91562.0,91551.0,0.00016379]
[1768264740470,0.010935,91559.0,91551.0,0.00016379]
[1768264741658,0.010935,91557.0,91551.0,0.00016379]
[1768264742258,0.010935,91558.0,91551.0,0.00016379]
[1768264744474,0.010935,91554.0,91542.0,0.09214915]
[1768264744770,0.010936,91551.0,91548.0,1.2e-07]
[1768264745076,0.010936,91550.0,91538.0,0.0933426]
[1768264745369,0.010936,91548.0,91538.0,0.0933426]
[1768264745573,0.010936,91548.0,91536.0,0.07816968]
[1768264745960,0.09151439,91550.0,91535.0,0.07816968]
[1768264746162,0.18499968,91547.0,91533.0,0.07816968]
[1768264746376,0.09151439,91547.0,91532.0,0.17656968]
[1768264747077,0.010936,91548.0,91532.0,0.17656968]
[1768264747376,0.010936,91548.0,91532.0,0.1917426]
[1768264747578,0.18991439,91552.0,91533.0,0.0933426]
[1768264747874,0.18991439,91552.0,91532.0,0.19797538]
[1768264747875,0.0984,91552.0,91535.0,0.0933426]
[1768264749577,0.010936,91551.0,91535.0,0.0933426]
[1768264749879,0.010936,91549.0,91535.0,0.0933426]
[1768264750080,0.18499968,91546.0,91529.0,0.07816968]
[1768264750384,0.010937,91538.0,91521.0,7.76e-05]
[1768264750673,0.010937,91535.0,91521.0,7.76e-05]
[1768264750880,0.010937,91538.0,91521.0,7.76e-05]
[1768264751770,0.010937,91535.0,91521.0,7.76e-05]
[1768264752578,0.10245139,91535.0,91521.0,7.76e-05]
[1768264752780,0.010938,91532.0,91521.0,7.76e-05]
[1768264752978,0.010938,91526.0,91516.0,0.0933426]
[1768264753277,0.010938,91528.0,91515.0,0.0984]
[1768264754078,7.76e-05,91527.0,91515.0,0.0984]
[1768264755579,7.76e-05,91527.0,91512.0,0.19890601]
[1768264757185,0.010939,91523.0,91508.0,0.0984]
[1768264757370,0.010939,91523.0,91508.0,0.19773063]
[1768264757771,0.010939,91523.0,91509.0,0.09933063]
[1768264758077,7.76e-05,91527.0,91509.0,0.09933063]
[1768264758480,7.76e-05,91527.0,91510.0,0.09933063]
[1768264759180,0.010939,91526.0,91510.0,0.09933063]
[1768264759481,7.76e-05,91527.0,91511.0,0.09933063]
[1768264760179,7.76e-05,91527.0,91511.0,0.19530881]
[1768264760382,7.76e-05,91527.0,91512.0,0.19530881]
[1768264760579,7.76e-05,91527.0,91513.0,0.09933063]
[1768264761777,7.76e-05,91527.0,91513.0,0.19530881]
[1768264761974,7.76e-05,91527.0,91514.0,0.19530881]
[1768264762183,0.010938,91533.0,91516.0,0.09933063]
[1768264762381,0.09844,91532.0,91516.0,0.09933063]
[1768264762680,0.00546182,91545.0,91519.0,0.09597818]
[1768264762888,0.09844,91544.0,91521.0,0.09597818]
[1768264763074,0.010937,91543.0,91524.0,0.09933063]
[1768264763382,0.010937,91540.0,91526.0,0.19530881]
[1768264763585,0.010937,91540.0,91527.0,0.09933063]
[1768264767479,0.010937,91540.0,91522.0,0.09933063]
[1768264767885,0.010937,91540.0,91522.0,0.19530881]
[1768264768190,0.010937,91540.0,91523.0,0.19530881]
[1768264768488,0.010937,91540.0,91524.0,0.19530881]
[1768264768677,0.010937,91540.0,91525.0,0.09933063]
[1768264769688,0.010937,91535.0,91514.0,0.09933063]
[1768264769880,0.010937,91535.0,91514.0,0.19530881]
[1768264770080,0.010937,91535.0,91516.0,0.19530881]
[1768264770488,0.010937,91535.0,91517.0,0.19530881]
[1768264770789,0.010937,91535.0,91519.0,0.09933063]
[1768264770973,0.010938,91533.0,91519.0,0.09933063]
[1768264771788,0.18568497,91538.0,91519.0,0.09933063]
[1768264772379,0.010938,91531.0,91509.0,0.19530881]
[1768264772579,0.010938,91531.0,91510.0,0.19530881]
[1768264772889,0.010938,91531.0,91512.0,0.19530881]
[1768264773089,0.010938,91529.0,91514.0,0.09933063]
[1768264773299,0.09844,91541.0,91514.0,0.09933063]
[1768264773300,0.18568497,91533.0,91514.0,0.09933063]
[1768264773683,0.09033501,91533.0,91514.0,0.09933063]
[1768264774483,0.010938,91529.0,91514.0,0.09933063]
[1768264776584,0.010938,91527.0,91514.0,0.09933063]
[1768264777289,0.09844,91530.0,91514.0,0.09933063]
[1768264777290,0.010939,91524.0,91514.0,0.09933063]
[1768264777495,0.09844,91530.0,91510.0,0.09726006]
[1768264777794,0.09844,91530.0,91511.0,0.09726006]
[1768264778592,0.010939,91526.0,91511.0,0.09726006]
[1768264778892,0.010938,91527.0,91511.0,0.09726006]
[1768264780190,0.010938,91527.0,91512.0,0.07801345]
[1768264780497,0.010938,91527.0,91513.0,0.09726006]
[1768264781592,0.010938,91527.0,91515.0,0.07801345]
[1768264782092,0.010938,91527.0,91507.0,0.09757459]
[1768264782093,0.010941,91507.0,91505.0,8e-07]
[1768264782300,0.09844,91509.0,91492.0,0.09726006]
[1768264782596,0.010943,91493.0,91485.0,0.10272547]
[1768264782791,0.09844,91504.0,91485.0,0.10272547]
[1768264783893,0.010942,91494.0,91485.0,0.10272547]
[1768264784097,0.09844,91504.0,91485.0,0.10272547]
[1768264784396,0.09798384,91502.0,91485.0,0.00546541]
[1768264784596,0.010942,91495.0,91485.0,0.00546541]
[1768264784797,0.010942,91495.0,91485.0,0.00562929]
[1768264786993,0.010943,91491.0,91485.0,0.00562929]
[1768264787598,0.09798384,91502.0,91485.0,0.00562929]
[1768264788501,0.010942,91494.0,91485.0,0.00562929]
[1768264789909,0.010942,91497.0,91485.0,0.10288935]
[1768264793193,0.09798384,91513.0,91488.0,0.09998033]
[1768264793394,0.010941,91502.0,91491.0,0.19724039]
[1768264793595,0.09844,91501.0,91492.0,0.09726006]
[1768264793991,0.010942,91500.0,91492.0,0.09726006]
[1768264794192,0.010942,91500.0,91489.0,0.09726006]
[1768264794395,0.010942,91497.0,91489.0,0.09726006]
[1768264795390,0.19608549,91508.0,91489.0,0.09726006]
[1768264795590,0.09844,91507.0,91489.0,0.09726006]
[1768264795802,0.14931814,91499.0,91458.0,0.00240549]
[1768264796000,0.19608549,91467.0,91454.0,0.09844]
[1768264796202,0.010946,91463.0,91454.0,0.09848]
[1768264796503,0.010947,91453.0,91444.0,0.09998033]
[1768264796705,0.010948,91450.0,91446.0,0.09848]
[1768264796907,9.046e-05,91449.0,91445.0,8e-07]
[1768264797411,0.010947,91452.0,91445.0,8e-07]
[1768264797799,0.00016397,91457.0,91445.0,8e-07]